fUST/lending_fUST_20240212
["ID","MTS","AMOUNT","RATE_DAILY","PERIOD"]
[313767561,1707701442091,-500.0,0.00019893,2]
[313767562,1707701442100,-500.0,0.00019893,2]
[313767563,1707701442109,-500.0,0.00019893,2]
[313767564,1707701442118,-500.0,0.00019893,2]
[313767565,1707701442127,-500.0,0.00019893,2]
[313767566,1707701442136,-500.0,0.00019893,2]
[313767567,1707701442145,-210.58292805,0.00019893,2]
[313767568,1707701442155,-506.99209139,0.00019893,2]
[313767569,1707701442164,-514.41808791,0.00019893,2]
[313767570,1707701442173,-500.0,0.00019893,2]
[313767571,1707701442182,-500.0,0.00019893,2]
[313767572,1707701442191,-500.0,0.00019893,2]
[313767573,1707701442200,-513.68155613,0.00019893,2]
[313767574,1707701442209,-500.0,0.00019893,2]
[313767575,1707701442218,-500.0,0.00019893,2]
[313767576,1707701442228,-500.0,0.00019893,2]
[313767577,1707701442237,-150.0,0.00019893,2]
[313767578,1707701442246,-500.0,0.00019893,2]
[313767579,1707701442255,-500.0,0.00019893,2]
[313767580,1707701442263,-500.0,0.00019893,2]
[313767581,1707701442273,-500.0,0.00019893,2]
[313767582,1707701442281,-500.0,0.00019893,2]
[313767583,1707701442290,-441.01037034,0.00019893,2]
[313767584,1707701442299,-500.0,0.00019893,2]
[313767585,1707701442308,-508.87386418,0.00019893,2]
[313767586,1707701442318,-500.0,0.00019893,2]
[313767587,1707701442327,-500.0,0.00019893,2]
[313767588,1707701442337,-500.0,0.00019893,2]
[313767589,1707701442346,-553.04925038,0.00019893,2]
[313767590,1707701442355,-500.0,0.00019893,2]
[313767591,1707701442365,-500.0,0.00019893,2]
[313767592,1707701442374,-500.0,0.00019893,2]
[313767593,1707701442383,-1136.05,0.00019893,2]
[313767594,1707701442392,-500.0,0.00019893,2]
[313767595,1707701442401,-1800.05,0.00019893,2]
[313767596,1707701442410,-500.0,0.00019893,2]
[313767597,1707701442418,-500.0,0.00019893,2]
[313767598,1707701442427,-560.81244935,0.00019893,2]
[313767599,1707701442436,-500.0,0.00019893,2]
[313767600,1707701442445,-500.0,0.00019893,2]
[313767601,1707701442454,-500.0,0.00019893,2]
[313767603,1707701442463,-500.0,0.00019893,2]
[313767604,1707701442473,-500.0,0.00019893,2]
[313767605,1707701442482,-500.0,0.00019893,2]
[313767606,1707701442491,-500.0,0.00019893,2]
[313767607,1707701442500,-401.53073995,0.00019895,2]
[313767608,1707701442509,-549.797594,0.00019895,2]
[313767609,1707701442518,-500.0,0.00019895,2]
[313767610,1707701442528,-500.0,0.00019895,2]
[313767611,1707701442537,-500.0,0.00019895,2]
[313767612,1707701442547,-500.0,0.00019895,2]
[313767613,1707701442556,-519.18299543,0.00019895,2]
[313767614,1707701442566,-387.22354282,0.00019895,2]
[313767615,1707701442576,-500.0,0.00019895,2]
[313767616,1707701442585,-500.0,0.00019895,2]
[313767617,1707701442595,-500.0,0.00019895,2]
[313767618,1707701442605,-500.0,0.00019895,2]
[313767619,1707701442614,-361.58501932,0.00019895,2]
[313767620,1707701442623,-500.0,0.00019895,2]
[313767621,1707701442632,-500.0,0.00019895,2]
[313767622,1707701442641,-500.0,0.00019895,2]
[313767624,1707701442650,-506.83299344,0.00019895,2]
[313767625,1707701442660,-500.0,0.00019895,2]
[313767626,1707701442669,-500.0,0.00019895,2]
[313767627,1707701442678,-376.6872183,0.00019895,2]
[313767628,1707701442687,-519.63984303,0.00019895,2]
[313767629,1707701442696,-500.0,0.00019895,2]
[313767630,1707701442705,-500.0,0.00019895,2]
[313767631,1707701442714,-500.0,0.00019895,2]
[313767632,1707701442723,-500.0,0.00019895,2]
[313767633,1707701442732,-500.0,0.00019895,2]
[313767634,1707701442743,-500.0,0.00019895,2]
[313767635,1707701442754,-500.0,0.00019895,2]
[313767636,1707701442764,-500.0,0.00019895,2]
[313767637,1707701442773,-500.0,0.00019895,2]
[313767638,1707701442782,-500.0,0.00019895,2]
[313767639,1707701442791,-500.0,0.00019895,2]
[313767640,1707701442800,-507.90586278,0.00019895,2]
[313767642,1707701442809,-500.0,0.00019895,2]
[313767643,1707701442818,-230.09937331,0.00019895,2]
[313767644,1707701442827,-500.0,0.00019895,2]
[313767646,1707701442837,-500.0,0.00019895,2]
[313767647,1707701442847,-500.0,0.00019895,2]
[313767648,1707701442856,-500.0,0.00019895,2]
[313767649,1707701442865,-500.0,0.00019895,2]
[313767650,1707701442874,-500.0,0.00019895,2]
[313767651,1707701442884,-500.0,0.00019895,2]
[313767652,1707701442893,-500.0,0.00019895,2]
[313767653,1707701442902,-500.0,0.00019895,2]
[313767654,1707701442911,-500.0,0.00019895,2]
[313767655,1707701442920,-500.0,0.00019895,2]
[313767656,1707701442931,-531.74712945,0.00019895,2]
[313767657,1707701442940,-500.0,0.00019895,2]
[313767658,1707701442950,-500.0,0.00019895,2]
[313767659,1707701442958,-500.0,0.00019895,2]
[313767660,1707701442967,-500.0,0.00019895,2]
[313767661,1707701442977,-500.0,0.00019895,2]
[313767662,1707701442987,-500.0,0.00019895,2]
[313767663,1707701442996,-500.0,0.00019895,2]
[313767664,1707701443006,-500.0,0.00019895,2]
[313767665,1707701443015,-500.0,0.00019895,2]
[313767666,1707701443024,-636.38016015,0.00019895,2]
[313767667,1707701443034,-500.0,0.00019895,2]
[313767668,1707701443043,-500.0,0.00019895,2]
[313767669,1707701443053,-500.0,0.00019895,2]
[313767670,1707701443061,-500.0,0.00019895,2]
[313767671,1707701443071,-529.98413936,0.00019895,2]
[313767672,1707701443080,-500.0,0.00019895,2]
[313767673,1707701443090,-500.0,0.00019895,2]
[313767674,1707701443101,-549.63151351,0.00019895,2]
[313767675,1707701443111,-500.0,0.00019895,2]
[313767676,1707701443121,-500.0,0.00019895,2]
[313767677,1707701443131,-500.0,0.00019895,2]
[313767678,1707701443141,-500.0,0.00019895,2]
[313767685,1707701443264,-500.0,0.00019895,2]
[313767686,1707701443274,-500.0,0.00019895,2]
[313767687,1707701443283,-500.0,0.00019895,2]
[313767688,1707701443293,-640.66151112,0.00019895,2]
[313767689,1707701443302,-356.54932735,0.00019895,2]
[313767690,1707701443311,-500.0,0.00019895,2]
[313767691,1707701443320,-500.0,0.00019895,2]
[313767692,1707701443329,-500.0,0.00019895,2]
[313767693,1707701443338,-500.0,0.00019895,2]
[313767694,1707701443348,-500.0,0.00019934,2]
[313767695,1707701443357,-500.0,0.00019934,2]
[313767696,1707701443366,-500.0,0.00019934,2]
[313767697,1707701443375,-500.0,0.00019934,2]
[313767698,1707701443384,-539.02136947,0.00019934,2]
[313767699,1707701443393,-500.0,0.00019934,2]
[313767700,1707701443403,-500.0,0.00019934,2]
[313767701,1707701443412,-500.0,0.00019934,2]
[313767702,1707701443421,-645.47355452,0.00019934,2]
[313767703,1707701443431,-500.0,0.00019934,2]
[313767704,1707701443440,-693.804049,0.00019934,2]
[313767705,1707701443450,-500.0,0.00019934,2]
[313767706,1707701443459,-693.804049,0.00019934,2]
[313767707,1707701443469,-151.0,0.00019934,2]
[313767708,1707701443478,-500.0,0.00019934,2]
[313767709,1707701443487,-500.0,0.00019934,2]
[313767710,1707701443497,-500.0,0.00019934,2]
[313767711,1707701443506,-500.0,0.00019934,2]
[313767712,1707701443515,-500.0,0.00019934,2]
[313767713,1707701443524,-500.0,0.00019934,2]
[313767714,1707701443533,-500.0,0.00019934,2]
[313767715,1707701443542,-500.0,0.00019934,2]
[313767716,1707701443551,-151.0,0.00019934,2]
[313767717,1707701443560,-500.0,0.00019934,2]
[313767718,1707701443569,-500.0,0.00019934,2]
[313767719,1707701443578,-500.0,0.00019934,2]
[313767720,1707701443587,-500.0,0.00019934,2]
[313767721,1707701443596,-500.0,0.00019934,2]
[313767722,1707701443606,-500.0,0.00019934,2]
[313767723,1707701443615,-500.0,0.00019934,2]
[313767724,1707701443624,-500.0,0.00019934,2]
[313767725,1707701443633,-500.0,0.00019934,2]
[313767726,1707701443642,-500.0,0.00019934,2]
[313767727,1707701443651,-822.93474639,0.00019934,2]
[313767728,1707701443660,-210.5377124,0.00019934,2]
[313767729,1707701443670,-2807.89,0.00019934,2]
[313767730,1707701443679,-2078.344037,0.00019934,2]
[313767731,1707701443687,-2078.344037,0.00019934,2]
[313767732,1707701443698,-500.0,0.00019934,2]
[313767733,1707701443707,-500.0,0.00019934,2]
[313767734,1707701443716,-500.0,0.00019934,2]
[313767735,1707701443725,-500.0,0.00019934,2]
[313767736,1707701443734,-1797.45,0.00019934,2]
[313767737,1707701443744,-500.0,0.00019934,2]
[313767738,1707701443755,-151.0,0.00019934,2]
[313767739,1707701443769,-500.0,0.00019934,2]
[313767740,1707701443778,-1620.66,0.00019934,2]
[313767741,1707701443787,-500.0,0.00019934,2]
[313767742,1707701443796,-500.0,0.00019934,2]
[313767743,1707701443805,-151.0,0.00019944,2]
[313767744,1707701443814,-300.0,0.0002,2]
[313767745,1707701443823,-2092.20651111,0.0002,2]
[313767746,1707701443834,-6304.53229004,0.0002,2]
[313767747,1707701443843,-151.0,0.0002,2]
[313767748,1707701443852,-253.872999,0.0002,2]
[313767749,1707701443861,-151.0,0.0002,2]
[313767750,1707701443870,-151.0,0.0002,2]
[313767751,1707701443879,-2078.344037,0.0002,2]
[313767752,1707701443888,-2078.344037,0.0002,2]
[313767753,1707701443897,-332.14556318,0.0002,2]
[313767754,1707701443906,-620.00000045,0.00020134,2]
[313767755,1707701443915,-3179.82,0.0002015,2]
[313767756,1707701443924,-309.87205869,0.0002015,2]
[313767757,1707701443933,-500.0,0.00020156,2]
[313767758,1707701443943,-3830.25,0.00020157,2]
[313767759,1707701443953,-500.0,0.00020157,2]
[313767760,1707701443962,-500.0,0.00020157,2]
[313767761,1707701443971,-508.81521079,0.00020157,2]
[313767762,1707701443980,-250.0,0.00020157,2]
[313767763,1707701443989,-500.0,0.00020158,2]
[313767764,1707701443999,-693.804049,0.00020158,2]
[313767765,1707701444008,-693.804049,0.00020158,2]
[313767766,1707701444017,-151.0,0.00020158,2]
[313767767,1707701444027,-500.0,0.00020158,2]
[313767768,1707701444036,-2519.76,0.00020158,2]
[313767769,1707701444046,-500.0,0.00020158,2]
[313767770,1707701444055,-500.0,0.00020158,2]
[313767771,1707701444064,-500.0,0.00020158,2]
[313767772,1707701444073,-500.0,0.00020158,2]
[313767773,1707701444082,-500.0,0.00020158,2]
[313767774,1707701444091,-254.77516978,0.00020158,2]
[313767775,1707701444100,-500.0,0.00020158,2]
[313767776,1707701444109,-500.0,0.00020158,2]
[313767777,1707701444118,-500.0,0.00020158,2]
[313767778,1707701444127,-500.0,0.00020158,2]
[313767779,1707701444136,-500.0,0.00020158,2]
[313767780,1707701444145,-500.0,0.00020158,2]
[313767781,1707701444154,-151.0,0.00020158,2]
[313767782,1707701444163,-507.87235963,0.00020158,2]
[313767783,1707701444172,-500.0,0.00020158,2]
[313767784,1707701444181,-504.71886837,0.00020158,2]
[313767785,1707701444192,-502.29631072,0.00020158,2]
[313767786,1707701444201,-506.38486232,0.00020158,2]
[313767787,1707701444210,-503.23358366,0.00020158,2]
[313767788,1707701444219,-500.0,0.00020161,2]
[313767789,1707701444228,-500.0,0.00020161,2]
[313767790,1707701444237,-500.0,0.00020161,2]
[313767791,1707701444246,-500.0,0.00020161,2]
[313767792,1707701444255,-500.0,0.00020161,2]
[313767793,1707701444264,-500.0,0.00020167,2]
[313767794,1707701444273,-500.0,0.00020167,2]
[313767795,1707701444282,-500.0,0.00020167,2]
[313767796,1707701444291,-500.0,0.00020167,2]
[313767797,1707701444300,-500.0,0.00020167,2]
[313767798,1707701444309,-500.0,0.00020167,2]
[313767799,1707701444318,-500.0,0.00020167,2]
[313767800,1707701444327,-500.0,0.00020167,2]
[313767801,1707701444336,-500.0,0.00020167,2]
[313767802,1707701444345,-500.0,0.00020167,2]
[313767803,1707701444353,-500.0,0.00020167,2]
[313767804,1707701444362,-500.0,0.00020167,2]
[313767805,1707701444371,-500.0,0.00020167,2]
[313767806,1707701444380,-500.0,0.00020167,2]
[313767807,1707701444389,-500.0,0.00020167,2]
[313767808,1707701444398,-500.0,0.00020167,2]
[313767809,1707701444407,-150.0,0.00020167,2]
[313767810,1707701444416,-151.0,0.00020167,2]
[313767811,1707701444426,-500.0,0.00020167,2]
[313767812,1707701444435,-500.0,0.00020167,2]
[313767813,1707701444445,-500.0,0.00020167,2]
[313767814,1707701444454,-500.0,0.00020167,2]
[313767815,1707701444463,-500.0,0.00020167,2]
[313767816,1707701444473,-500.0,0.00020167,2]
[313767817,1707701444482,-500.0,0.00020167,2]
[313767818,1707701444491,-500.0,0.00020167,2]
[313767819,1707701444501,-500.0,0.00020167,2]
[313767820,1707701444510,-500.0,0.00020167,2]
[313767821,1707701444519,-500.0,0.00020167,2]
[313767822,1707701444528,-2078.344037,0.00020167,2]
[313767823,1707701444537,-2078.344037,0.00020167,2]
[313767824,1707701444547,-500.0,0.00020167,2]
[313767825,1707701444555,-1136.05,0.00020167,2]
[313767826,1707701444565,-1800.05,0.00020167,2]
[313767827,1707701444574,-500.0,0.00020167,2]
[313767828,1707701444584,-500.0,0.00020167,2]
[313767829,1707701444593,-153.760608,0.00020167,2]
[313767830,1707701444602,-500.0,0.00020167,2]
[313767831,1707701444611,-500.0,0.00020167,2]
[313767832,1707701444620,-506.79732016,0.00020167,2]
[313767833,1707701444629,-502.35659916,0.00020167,2]
[313767834,1707701444638,-500.0,0.00020167,2]
[313767835,1707701444647,-500.0,0.00020167,2]
[313767836,1707701444656,-500.0,0.00020167,2]
[313767837,1707701444665,-693.804049,0.00020168,2]
[313767838,1707701444674,-693.804049,0.00020168,2]
[313767839,1707701444683,-151.0,0.00020168,2]
[313767840,1707701444692,-500.0,0.00020169,2]
[313767841,1707701444701,-500.0,0.00020169,2]
[313767842,1707701444711,-500.0,0.00020169,2]
[313767843,1707701444719,-500.0,0.00020169,2]
[313767844,1707701444728,-571.43525774,0.00020169,2]
[313767845,1707701444737,-151.0,0.00020169,2]
[313767846,1707701444746,-151.0,0.00020169,2]
[313767847,1707701444758,-500.0,0.00020169,2]
[313767848,1707701444767,-500.0,0.00020169,2]
[313767849,1707701444777,-500.0,0.00020169,2]
[313767850,1707701444786,-500.0,0.00020169,2]
[313767851,1707701444795,-500.0,0.00020169,2]
[313767852,1707701444803,-500.0,0.00020169,2]
[313767853,1707701444812,-500.0,0.00020169,2]
[313767854,1707701444822,-500.0,0.00020169,2]
[313767855,1707701444831,-500.0,0.00020169,2]
[313767856,1707701444840,-500.0,0.00020169,2]
[313767857,1707701444849,-500.0,0.00020169,2]
[313767858,1707701444858,-500.0,0.00020169,2]
[313767859,1707701444867,-500.0,0.00020169,2]
[313767860,1707701444876,-645.78,0.00020169,2]
[313767861,1707701444885,-500.0,0.00020169,2]
[313767862,1707701444894,-500.0,0.00020169,2]
[313767863,1707701444903,-164.379198,0.00020169,2]
[313767864,1707701444912,-603.55130959,0.00020169,2]
[313767865,1707701444922,-500.0,0.00020169,2]
[313767866,1707701444931,-151.0,0.00020169,2]
[313767867,1707701444940,-500.0,0.00020169,2]
[313767868,1707701444950,-500.0,0.00020169,2]
[313767869,1707701444958,-500.0,0.00020169,2]
[313767870,1707701444967,-500.0,0.00020169,2]
[313767871,1707701444976,-500.0,0.00020169,2]
[313767872,1707701444985,-500.0,0.00020169,2]
[313767873,1707701444994,-500.0,0.00020169,2]
[313767874,1707701445003,-500.0,0.00020169,2]
[313767875,1707701445012,-500.0,0.00020169,2]
[313767876,1707701445020,-500.0,0.00020169,2]
[313767877,1707701445029,-500.0,0.00020169,2]
[313767878,1707701445039,-500.0,0.00020169,2]
[313767879,1707701445048,-520.25187621,0.00020169,2]
[313767880,1707701445057,-500.0,0.00020169,2]
[313767881,1707701445066,-693.804049,0.00020169,2]
[313767882,1707701445075,-693.804049,0.00020169,2]
[313767883,1707701445084,-255.06433237,0.00020169,2]
[313767884,1707701445094,-151.0,0.00020169,2]
[313767885,1707701445103,-500.0,0.00020169,2]
[313767886,1707701445112,-151.0,0.00020169,2]
[313767887,1707701445121,-500.0,0.00020169,2]
[313767888,1707701445130,-500.0,0.00020169,2]
[313767889,1707701445140,-500.0,0.00020169,2]
[313767890,1707701445149,-500.0,0.00020169,2]
[313767891,1707701445158,-500.0,0.00020169,2]
[313767892,1707701445167,-2078.344037,0.00020169,2]
[313767893,1707701445176,-2078.344037,0.00020169,2]
[313767894,1707701445185,-155.10384091,0.0002017,2]
[313767895,1707701445195,-500.0,0.00020208,2]
[313767896,1707701445204,-500.0,0.00020208,2]
[313767897,1707701445214,-151.0,0.00020208,2]
[313767898,1707701445222,-500.0,0.00020208,2]
[313767899,1707701445231,-500.0,0.00020208,2]
[313767900,1707701445240,-500.0,0.00020208,2]
[313767901,1707701445249,-500.0,0.00020208,2]
[313767903,1707701445258,-500.0,0.00020208,2]
[313767904,1707701445267,-500.0,0.00020208,2]
[313767905,1707701445276,-559.14879036,0.00020208,2]
[313767906,1707701445286,-523.1,0.00020208,2]
[313767907,1707701445295,-500.0,0.00020208,2]
[313767908,1707701445304,-500.0,0.00020208,2]
[313767909,1707701445313,-500.0,0.00020208,2]
[313767910,1707701445322,-500.0,0.00020208,2]
[313767911,1707701445332,-151.0,0.00020208,2]
[313767912,1707701445341,-500.0,0.00020208,2]
[313767913,1707701445350,-500.0,0.00020208,2]
[313767914,1707701445359,-500.0,0.00020208,2]
[313767915,1707701445368,-500.0,0.00020208,2]
[313767917,1707701445377,-500.0,0.00020208,2]
[313767919,1707701445386,-500.0,0.00020208,2]
[313767921,1707701445395,-500.0,0.00020208,2]
[313767923,1707701445404,-433.98228519,0.00020208,2]
[313767924,1707701445413,-500.0,0.00020208,2]
[313767926,1707701445422,-500.0,0.00020208,2]
[313767927,1707701445431,-2807.89,0.00020208,2]
[313767929,1707701445440,-2078.344037,0.00020208,2]
[313767930,1707701445449,-2078.344037,0.00020208,2]
[313767931,1707701445458,-500.0,0.00020208,2]
[313767932,1707701445467,-500.0,0.00020208,2]
[313767933,1707701445476,-500.0,0.00020208,2]
[313767934,1707701445485,-500.0,0.00020208,2]
[313767936,1707701445494,-1797.45,0.00020208,2]
[313767938,1707701445503,-500.0,0.00020208,2]
[313767941,1707701445512,-500.0,0.00020208,2]
[313767944,1707701445522,-1620.66,0.00020208,2]
[313767946,1707701445531,-500.0,0.00020208,2]
[313767948,1707701445540,-503.58215385,0.00020208,2]
[313767950,1707701445549,-693.804049,0.00020218,2]
[313767952,1707701445558,-693.804049,0.00020218,2]
[313767954,1707701445567,-151.0,0.00020218,2]
[313767956,1707701445576,-151.0,0.00020369,2]
[313767958,1707701445586,-2078.344037,0.00020381,2]
[313767960,1707701445595,-2078.344037,0.00020381,2]
[313767962,1707701445604,-3179.82,0.00020424,2]
[313767964,1707701445613,-500.0,0.0002043,2]
[313767966,1707701445622,-3830.25,0.00020431,2]
[313767968,1707701445631,-442.61351124,0.00020431,2]
[313767970,1707701445640,-2519.76,0.00020432,2]
[313767973,1707701445649,-500.0,0.00020432,2]
[313767976,1707701445658,-500.0,0.00020432,2]
[313767978,1707701445667,-500.0,0.00020432,2]
[313767981,1707701445677,-500.0,0.00020432,2]
[313767983,1707701445686,-349.32,0.00020432,2]
[313767984,1707701445696,-500.0,0.00020432,2]
[313767985,1707701445705,-266.08,0.00020441,2]
[313767986,1707701445714,-500.0,0.00020441,2]
[313767987,1707701445723,-151.0,0.00020441,2]
[313767988,1707701445732,-500.0,0.00020441,2]
[313767989,1707701445741,-432.88,0.00020441,2]
[313767990,1707701445755,-500.0,0.00020441,2]
[313767991,1707701445768,-500.0,0.00020441,2]
[313767992,1707701445777,-500.0,0.00020441,2]
[313767993,1707701445786,-424.09826865,0.00020441,2]
[313767994,1707701445797,-1136.05,0.00020441,2]
[313767995,1707701445806,-1800.05,0.00020441,2]
[313767996,1707701445815,-500.0,0.00020441,2]
[313767997,1707701445824,-546.0,0.00020441,2]
[313767998,1707701445834,-635.52,0.00020441,2]
[313768000,1707701445843,-602.27618353,0.00020441,2]
[313768002,1707701445852,-503.52989432,0.00020441,2]
[313768004,1707701445860,-500.0,0.00020441,2]
[313768005,1707701445869,-151.0,0.00020442,2]
[313768006,1707701445878,-500.0,0.00020443,2]
[313768007,1707701445888,-500.0,0.00020443,2]
[313768008,1707701445897,-151.0,0.00020443,2]
[313768009,1707701445906,-500.0,0.00020443,2]
[313768010,1707701445915,-500.0,0.00020443,2]
[313768011,1707701445924,-500.0,0.00020443,2]
[313768012,1707701445933,-500.0,0.00020443,2]
[313768013,1707701445943,-500.0,0.00020443,2]
[313768014,1707701445952,-299.28,0.00020443,2]
[313768015,1707701445961,-500.0,0.00020443,2]
[313768016,1707701445970,-446.24,0.00020443,2]
[313768017,1707701445979,-693.804049,0.00020443,2]
[313768018,1707701445988,-693.804049,0.00020443,2]
[313768019,1707701445998,-500.0,0.00020443,2]
[313768020,1707701446007,-491.42,0.00020443,2]
[313768021,1707701446016,-2078.344037,0.00020443,2]
[313768022,1707701446025,-2078.344037,0.00020443,2]
[313768024,1707701446034,-861.55239154,0.00020478,3]
[313768026,1707701446043,-4085.94242056,0.0002048,2]
[313768028,1707701446052,-5000.0,0.0002048,2]
[313768030,1707701446061,-5000.0,0.0002048,2]
[313768032,1707701446071,-5000.0,0.0002048,2]
[313768034,1707701446080,-5000.0,0.0002048,2]
[313768036,1707701446089,-151.0,0.0002048,2]
[313768038,1707701446097,-151.0,0.0002048,2]
[313768040,1707701446204,-693.804049,0.0002048,2]
[313768041,1707701446214,-693.804049,0.0002048,2]
[313768042,1707701446223,-229.14261,0.0002048,2]
[313768043,1707701446231,-2078.344037,0.0002048,2]
[313768044,1707701446240,-2078.344037,0.0002048,2]
[313768045,1707701446249,-11749.58088788,0.00020481,2]
[313768046,1707701446258,-5000.0,0.00020481,2]
[313768047,1707701446267,-5000.0,0.00020481,2]
[313768048,1707701446276,-5000.0,0.00020481,2]
[313768049,1707701446285,-3120.42586527,0.00020481,2]
[313768050,1707701446295,-5000.0,0.00020481,2]
[313768051,1707701446304,-6926.57856513,0.00020481,2]
[313768052,1707701446313,-151.0,0.00020481,2]
[313768053,1707701446322,-5000.0,0.00020481,2]
[313768054,1707701446331,-151.0,0.00020481,2]
[313768055,1707701446341,-211.539213,0.00020481,2]
[313768056,1707701446350,-693.804049,0.00020481,2]
[313768057,1707701446359,-693.804049,0.00020481,2]
[313768058,1707701446368,-693.804049,0.00020481,2]
[313768059,1707701446377,-693.804049,0.00020481,2]
[313768060,1707701446386,-2078.344037,0.00020481,2]
[313768061,1707701446395,-2078.344037,0.00020481,2]
[313768062,1707701446404,-2078.344037,0.00020481,2]
[313768063,1707701446413,-2078.344038,0.00020481,2]
[313768064,1707701446422,-2513.61533806,0.00020482,2]
[313768065,1707701446431,-500.0,0.00020482,2]
[313768066,1707701446440,-258.4,0.00020482,2]
[313768067,1707701446450,-500.0,0.00020482,2]
[313768068,1707701446459,-640.08,0.00020482,2]
[313768069,1707701446468,-500.0,0.00020482,2]
[313768070,1707701446477,-343.6,0.00020482,2]
[313768071,1707701446486,-500.0,0.00020482,2]
[313768072,1707701446495,-500.0,0.00020482,2]
[313768073,1707701446504,-2807.89,0.00020482,2]
[313768074,1707701446513,-500.0,0.00020482,2]
[313768075,1707701446522,-1797.45,0.00020482,2]
[313768076,1707701446531,-5000.0,0.00020482,2]
[313768077,1707701446540,-1620.66,0.00020482,2]
[313768078,1707701446549,-500.0,0.00020482,2]
[313768079,1707701446558,-151.0,0.00020492,2]
[313768080,1707701446568,-200.079134,0.00020493,2]
[313768081,1707701446576,-200.079134,0.00020493,2]
[313768082,1707701446586,-281.7607305,0.00020493,2]
[313768083,1707701446595,-280.0,0.00020695,2]
[313768084,1707701446604,-3179.82,0.00020698,2]
[313768085,1707701446613,-500.0,0.00020704,2]
[313768086,1707701446622,-3830.25,0.00020705,2]
[313768087,1707701446631,-2519.76,0.00020706,2]
[313768088,1707701446640,-288.52,0.00020706,2]
[313768089,1707701446648,-500.0,0.00020706,2]
[313768090,1707701446657,-500.0,0.00020706,2]
[313768091,1707701446666,-500.0,0.00020706,2]
[313768092,1707701446675,-500.0,0.00020706,2]
[313768093,1707701446684,-500.0,0.00020715,2]
[313768094,1707701446693,-693.804049,0.00020715,2]
[313768095,1707701446702,-693.8040557,0.00020715,2]
[313768096,1707701446711,-316.82,0.00020715,2]
[313768097,1707701446720,-500.0,0.00020715,2]
[313768098,1707701446729,-500.0,0.00020715,2]
[313768099,1707701446738,-500.0,0.00020715,2]
[313768100,1707701446755,-1136.05,0.00020715,2]
[313768101,1707701446786,-1800.05,0.00020715,2]
[313768102,1707701446796,-500.0,0.00020715,2]
[313768103,1707701446805,-500.0,0.00020715,2]
[313768104,1707701446814,-154.62532875,0.00020717,2]
[313768105,1707701446823,-471.4,0.00020717,2]
[313768106,1707701446833,-500.0,0.00020717,2]
[313768107,1707701446842,-500.0,0.00020717,2]
[313768108,1707701446851,-500.0,0.00020717,2]
[313768109,1707701446860,-500.0,0.00020717,2]
[313768110,1707701446869,-500.0,0.00020756,2]
[313768111,1707701446878,-500.0,0.00020756,2]
[313768112,1707701446888,-500.0,0.00020756,2]
[313768113,1707701446897,-500.0,0.00020756,2]
[313768114,1707701446906,-500.0,0.00020756,2]
[313768115,1707701446915,-2807.89,0.00020756,2]
[313768116,1707701446925,-359.66,0.00020756,2]